fUST/lending_fUST_20240502
["ID","MTS","AMOUNT","RATE_DAILY","PERIOD"]
[325239988,1714618233632,-500.0,0.00052876,120]
[325239989,1714618233641,-504.53324562,0.00052876,120]
[325239990,1714618233650,-500.0,0.00052876,120]
[325239991,1714618233659,-431.33605261,0.00052876,120]
[325239992,1714618233669,-509.56952401,0.00052876,120]
[325239993,1714618233678,-504.53595622,0.00052876,120]
[325239994,1714618233687,-500.0,0.00052876,120]
[325239995,1714618233696,-500.0,0.00052876,120]
[325239996,1714618233706,-500.0,0.00052876,120]
[325239997,1714618233715,-1175.19,0.00052876,120]
[325239998,1714618233725,-248.36662735,0.00052876,120]
[325239999,1714618233735,-378.07159443,0.00052876,120]
[325240000,1714618233744,-500.0,0.00052876,120]
[325240001,1714618233754,-860.18,0.00052876,120]
[325240002,1714618233763,-526.58,0.00052876,120]
[325240003,1714618233773,-500.0,0.00052876,120]
[325240004,1714618233786,-500.0,0.00052876,120]
[325240005,1714618233796,-500.0,0.00052876,120]
[325240006,1714618233805,-500.0,0.00052876,120]
[325240007,1714618233921,-500.0,0.00052876,120]
[325240008,1714618233930,-255.62929005,0.00052876,120]
[325240009,1714618233945,-244.37070995,0.00052876,120]
[325240010,1714618233954,-482.91029024,0.00052876,2]
[325240011,1714618233965,-17.08970976,0.00052876,2]
[325240012,1714618233975,-500.0,0.00052876,120]
[325240013,1714618233984,-138.91029024,0.00052876,120]
[325240021,1714618239446,-3198.07091376,0.000525,120]
[325240022,1714618239456,-361.08970976,0.00052876,120]
[325240023,1714618239466,-500.0,0.00052876,120]
[325240024,1714618239475,-500.0,0.00052876,120]
[325240025,1714618239485,-500.0,0.00052876,21]
[325240026,1714618239494,-500.0,0.00052876,120]
[325240027,1714618239503,-500.0,0.00052876,120]
[325240028,1714618239512,-500.0,0.00052876,120]
[325240029,1714618239521,-500.0,0.00052876,120]
[325240030,1714618239531,-500.0,0.00052876,30]
[325240031,1714618239540,-500.0,0.00052876,120]
[325240032,1714618239549,-542.28199411,0.00052876,120]
[325240033,1714618239558,-500.0,0.00052876,120]
[325240034,1714618239568,-2179.32,0.00052876,120]
[325240035,1714618239577,-301.22853952,0.00052876,2]
[325240036,1714618239586,-500.0,0.00052876,120]
[325240037,1714618239596,-500.0,0.00052876,120]
[325240038,1714618239605,-501.31952405,0.00052876,120]
[325240039,1714618239614,-500.0,0.00052876,120]
[325240040,1714618239624,-733.15,0.00052876,120]
[325240041,1714618239633,-1630.04,0.00052876,120]
[325240042,1714618239644,-500.0,0.00052876,120]
[325240043,1714618239653,-500.7226982,0.00052876,120]
[325240044,1714618239663,-504.43850479,0.00052876,120]
[325240045,1714618239672,-503.39677138,0.00052876,120]
[325240046,1714618239682,-500.0,0.00052876,120]
[325240047,1714618239691,-500.0,0.00052876,120]
[325240048,1714618239700,-505.07902026,0.00052876,120]
[325240049,1714618239710,-503.68592503,0.00052876,120]
[325240050,1714618239719,-500.0,0.00052876,120]
[325240051,1714618239729,-500.0,0.00052876,120]
[325240052,1714618239738,-1084.43,0.00052876,120]
[325240053,1714618239748,-500.0,0.00052876,120]
[325240054,1714618239760,-500.0,0.00052876,120]
[325240055,1714618239775,-2909.94,0.00052876,120]
[325240056,1714618239784,-504.49291163,0.00052876,120]
[325240057,1714618239793,-560.87411708,0.00052876,120]
[325240058,1714618239803,-502.49967119,0.00052876,120]
[325240059,1714618239812,-500.0,0.00052876,120]
[325240060,1714618239821,-500.0,0.00052876,120]
[325240061,1714618239830,-863.48,0.00052876,120]
[325240062,1714618239839,-603.54,0.00052876,120]
[325240063,1714618239849,-500.0,0.00052876,120]
[325240064,1714618239857,-345.76868987,0.00052876,120]
[325240065,1714618239868,-500.0,0.00052876,120]
[325240066,1714618239878,-619.83,0.00052876,120]
[325240067,1714618239888,-500.0,0.00052876,120]
[325240068,1714618239898,-500.0,0.00052876,120]
[325240069,1714618239906,-500.0,0.00052876,120]
[325240070,1714618239916,-500.0,0.00052876,120]
[325240072,1714618239925,-896.16747776,0.00052876,120]
[325240229,1714618244623,-92.13252224,0.00052876,120]
[325240230,1714618244632,-576.25,0.00052876,120]
[325240233,1714618244643,-621.19,0.00052876,120]
[325240235,1714618244653,-333.2249992,0.00052876,120]
[325240236,1714618244662,-553.57,0.00052876,120]
[325240237,1714618244671,-503.54858804,0.00052876,120]
[325240238,1714618244681,-500.0,0.00052876,120]
[325240239,1714618244690,-172.7772856,0.00052876,120]
[325240240,1714618244699,-500.0,0.00052876,120]
[325240241,1714618244708,-509.91803388,0.00052876,120]
[325240242,1714618244717,-500.0,0.00052876,120]
[325240243,1714618244726,-504.13200548,0.00052876,120]
[325240244,1714618244735,-500.0,0.00052876,120]
[325240245,1714618244745,-615.51806839,0.00052876,120]
[325240246,1714618244754,-500.0,0.00052876,120]
[325240247,1714618244763,-500.0,0.00052876,120]
[325240248,1714618244773,-500.0,0.00052876,120]
[325240249,1714618244782,-500.0,0.00052876,120]
[325240250,1714618244791,-500.0,0.00052876,2]
[325240251,1714618244801,-503.02902897,0.00052876,120]
[325240252,1714618244813,-539.63,0.00052876,120]
[325240253,1714618244825,-500.0,0.00052876,120]
[325240254,1714618244836,-439.09810089,0.00052876,120]
[325240255,1714618244847,-502.34720341,0.00052876,120]
[325240256,1714618244859,-500.0,0.00052876,120]
[325240257,1714618244871,-500.0,0.00052876,120]
[325240258,1714618244882,-500.0,0.00052876,120]
[325240259,1714618244893,-500.0,0.00052876,120]
[325240260,1714618244903,-500.0,0.00052876,120]
[325240261,1714618244915,-500.0,0.00052876,120]
[325240262,1714618244926,-500.0,0.00052876,120]
[325240263,1714618244937,-500.0,0.00052876,120]
[325240264,1714618244948,-500.0,0.00052876,120]
[325240265,1714618244959,-500.0,0.00052876,120]
[325240266,1714618244971,-500.0,0.00052876,60]
[325240267,1714618244982,-501.73682092,0.00052876,120]
[325240268,1714618244994,-500.0,0.00052876,120]
[325240269,1714618245006,-535.82,0.00052876,120]
[325240270,1714618245018,-502.10970261,0.00052876,120]
[325240271,1714618245031,-500.0,0.00052876,120]
[325240272,1714618245044,-500.0,0.00052876,120]
[325240273,1714618245057,-500.0,0.00052876,120]
[325240274,1714618245071,-633.45,0.00052876,120]
[325240275,1714618245083,-500.0,0.00052876,120]
[325240276,1714618245095,-500.0,0.00052876,120]
[325240277,1714618245107,-500.0,0.00052876,120]
[325240278,1714618245117,-500.0,0.00052876,120]
[325240279,1714618245129,-341.10035665,0.00052876,120]
[325240280,1714618245142,-582.91,0.00052876,120]
[325240281,1714618245153,-235.75,0.00052876,120]
[325240282,1714618245164,-500.0,0.00052876,120]
[325240283,1714618245176,-500.0,0.00052876,120]
[325240284,1714618245188,-500.0,0.00053423,120]
[325240285,1714618245207,-500.0,0.00053424,120]
[325240286,1714618245229,-500.0,0.00053424,120]
[325240287,1714618245241,-500.0,0.00053424,120]
[325240288,1714618245252,-500.0,0.00053424,120]
[325240289,1714618245262,-560.6499095,0.00053424,120]
[325240290,1714618245274,-472.20013987,0.00053424,120]
[325240291,1714618245284,-500.0,0.00053424,120]
[325240292,1714618245295,-500.0,0.00053424,120]
[325240293,1714618245306,-500.0,0.00053424,120]
[325240294,1714618245317,-500.0,0.00053424,120]
[325240295,1714618245328,-500.0,0.00053424,120]
[325240296,1714618245339,-500.0,0.00053424,2]
[325240297,1714618245350,-500.0,0.00053424,120]
[325240298,1714618245361,-500.0,0.00053424,120]
[325240299,1714618245372,-500.0,0.00053424,120]
[325240300,1714618245383,-500.0,0.00053424,120]
[325240301,1714618245396,-500.0,0.00053424,120]
[325240302,1714618245406,-500.0,0.00053424,120]
[325240303,1714618245418,-500.0,0.00053424,7]
[325240304,1714618245429,-500.0,0.00053424,120]
[325240305,1714618245441,-500.0,0.00053424,120]
[325240306,1714618245452,-500.0,0.00053424,120]
[325240307,1714618245463,-500.0,0.00053424,120]
[325240308,1714618245474,-500.0,0.00053424,120]
[325240309,1714618245484,-502.25666926,0.00053424,120]
[325240310,1714618245494,-1645.64097458,0.00053424,120]
[325240324,1714618295182,1378.68043058,0.00020913,2]
[325240326,1714618352522,301.35581039,0.00020913,2]
[325240327,1714618418492,155.1476521,0.00020913,2]
[325240328,1714618480672,207.83814366,0.00020913,2]
[325240329,1714618497822,188.4579588,0.00020913,2]
[325240330,1714618513802,154.75239617,0.00020913,2]
[325240331,1714618529807,154.75239617,0.00020913,2]
[325240332,1714618540697,514.23297925,0.00020913,2]
[325240333,1714618545809,154.75239617,0.00020913,2]
[325240334,1714618567845,154.75239617,0.00020913,2]
[325240335,1714618583815,239.5211165,0.00020913,2]
[325240336,1714618691204,456.34085052,0.00020913,2]
[325240363,1714619432516,-165.72452,0.00027621,2]
[325240365,1714619432526,-717.616397,0.00028493,2]
[325240367,1714619432535,-240.0,0.00031356,3]
[325240369,1714619432544,-24900.0,0.00032121,2]
[325240371,1714619432554,-217.50783152,0.000329,2]
[325240373,1714619432563,-3387.06118485,0.000329,2]
[325240375,1714619432572,-5000.0,0.00033,4]
[325240377,1714619432582,-1513.34615984,0.00034,60]
[325240379,1714619432591,-717.616397,0.00034203,2]
[325240381,1714619432601,-722.45030278,0.00035,4]
[325240383,1714619432610,-936.76888307,0.00035,30]
[325240385,1714619432619,-189.71319043,0.00035,30]
[325240387,1714619432628,-717.616397,0.00039913,2]
[325240389,1714619432637,-304.65020211,0.0004,15]
[325240391,1714619432647,-639.47139,0.0004448,2]
[325240393,1714619432656,-3230.41851269,0.00044486,120]
[325240395,1714619432666,-717.616397,0.00045624,2]
[325240397,1714619432675,-493.0,0.00046351,2]
[325240399,1714619432686,-150.763,0.00046351,2]
[325240401,1714619432696,-3104.83715821,0.0005,120]
[325240403,1714619432705,-717.616397,0.00051334,2]
[325240405,1714619432714,-166.666666,0.00052055,2]
[325240407,1714619432723,-1830.64987151,0.000525,120]
[325240443,1714619439260,-10103.22707748,0.00027613,2]
[325240504,1714620632553,-268.3895921,0.00025311,2]
[325240505,1714620632563,-164.25885321,0.000269,2]
[325240506,1714620632572,-5243.4723856,0.00027,2]
[325240507,1714620632581,-220.96622212,0.00028,2]
[325240508,1714620632590,-167.013293,0.00028493,2]
[325240509,1714620632600,-1966.31407291,0.0003,7]
[325240510,1714620632613,-154.8672724,0.0003,4]
[325240511,1714620632623,-155.0,0.0003,2]
[325240512,1714620632634,-240.6,0.00031876,3]
[325240513,1714620632644,-5000.0,0.00033,4]
[325240514,1714620632653,-24900.0,0.00033208,2]
[325240515,1714620632663,-676.67673,0.00044486,2]
[325240516,1714620632672,-5011.17197661,0.00047,2]
[325240517,1714620632682,-166.666666,0.00052055,2]
[325240518,1714620632691,-2695.19883523,0.000525,120]
[325240519,1714620632700,-500.0,0.00052876,120]
[325240520,1714620632711,-500.0,0.00052876,120]
[325240521,1714620632720,-500.0,0.00052876,120]
[325240522,1714620632730,-569.5480997,0.00052876,120]
[325240523,1714620632739,-500.0,0.00052876,120]
[325240524,1714620632748,-500.0,0.00052876,120]
[325240525,1714620632757,-500.0,0.00052876,120]
[325240526,1714620632767,-827.5,0.00052876,120]
[325240527,1714620632777,-500.0,0.00052876,120]
[325240529,1714620632787,-500.0,0.00052876,120]
[325240530,1714620632797,-500.0,0.00052876,120]
[325240533,1714620632808,-500.0,0.00052876,2]
[325240535,1714620632817,-151.731867,0.00052876,7]
[325240537,1714620632826,-500.0,0.00052876,120]
[325240539,1714620632835,-500.0,0.00052876,120]
[325240541,1714620632844,-500.0,0.00052876,120]
[325240543,1714620632855,-500.0,0.00052876,120]
[325240545,1714620632870,-532.59965272,0.00052876,2]
[325240546,1714620632879,-500.0,0.00052876,120]
[325240547,1714620632888,-500.0,0.00052876,120]
[325240548,1714620632898,-500.0,0.00052876,120]
[325240549,1714620632908,-619.37443311,0.00052876,120]
[325240550,1714620632916,-155.429119,0.00052876,7]
[325240551,1714620632925,-500.0,0.00052876,120]
[325240552,1714620632934,-500.0,0.00052876,120]
[325240553,1714620632943,-3957.6,0.00052876,120]
[325240554,1714620632952,-500.0,0.00052876,120]
[325240555,1714620632962,-500.0,0.00052876,120]
[325240556,1714620632971,-500.0,0.00052876,120]
[325240557,1714620632980,-6611.22984591,0.00052876,120]
[325240574,1714620639540,-25076.33120463,0.00052876,120]
[325240600,1714620641098,-401.63712974,0.00052876,120]
[325240622,1714620645060,-51244.05181972,0.00052876,120]
[325240623,1714620645071,-500.0,0.00052876,21]
[325240624,1714620645081,-1126.22,0.00052876,120]
[325240625,1714620645090,-500.0,0.00052876,120]
[325240626,1714620645100,-500.0,0.00052876,120]
[325240627,1714620645109,-500.0,0.00052876,120]
[325240628,1714620645121,-824.34,0.00052876,120]
[325240629,1714620645131,-500.0,0.00052876,120]
[325240630,1714620645140,-500.0,0.00052876,120]
[325240631,1714620645150,-503.15517708,0.00052876,120]
[325240632,1714620645160,-500.0,0.00052876,120]
[325240633,1714620645169,-500.0,0.00052876,120]
[325240634,1714620645178,-2088.52,0.00052876,120]
[325240635,1714620645188,-500.0,0.00052876,120]
[325240636,1714620645198,-1562.12,0.00052876,120]
[325240637,1714620645207,-500.0,0.00052876,120]
[325240638,1714620645216,-500.0,0.00052876,2]
[325240639,1714620645226,-500.0,0.00052876,30]
[325240640,1714620645236,-500.0,0.00052876,120]
[325240641,1714620645245,-500.0,0.00052876,120]
[325240642,1714620645255,-500.0,0.00052876,120]
[325240643,1714620645264,-500.0,0.00052876,120]
[325240644,1714620645274,-2788.69,0.00052876,120]
[325240645,1714620645283,-586.95315101,0.00052876,120]
[325240646,1714620645292,-500.0,0.00052876,120]
[325240647,1714620645302,-500.0,0.00052876,120]
[325240648,1714620645312,-526.31684307,0.00052876,120]
[325240649,1714620645322,-530.51,0.00052876,120]
[325240650,1714620645331,-702.6,0.00052876,120]
[325240651,1714620645340,-500.0,0.00052876,120]
[325240652,1714620645349,-264.43,0.00052876,120]
[325240653,1714620645360,-427.19298882,0.00052876,120]
[325240654,1714620645372,-1039.25,0.00052876,120]
[325240655,1714620645381,-151.0,0.00052876,7]
[325240656,1714620645391,-517.15,0.00052876,120]
[325240657,1714620645400,-500.0,0.00052876,120]
[325240658,1714620645410,-500.0,0.00052876,120]
[325240659,1714620645419,-171.37,0.00052876,120]
[325240660,1714620645430,-157.01,0.00052876,120]
[325240661,1714620645439,-500.0,0.00052876,120]
[325240662,1714620645448,-552.24,0.00052876,120]
[325240663,1714620645458,-151.0,0.00052876,7]
[325240664,1714620645467,-151.0,0.00052876,7]
[325240665,1714620645476,-151.0,0.00052876,7]
[325240666,1714620645486,-500.0,0.00052876,120]
[325240667,1714620645495,-500.0,0.00052876,120]
[325240668,1714620645504,-500.0,0.00052876,120]
[325240669,1714620645514,-500.0,0.00052876,120]
[325240670,1714620645523,-500.0,0.00052876,120]
[325240671,1714620645532,-607.06,0.00052876,120]
[325240672,1714620645541,-500.0,0.00052876,120]
[325240673,1714620645551,-500.0,0.00052876,120]
[325240674,1714620645560,-500.0,0.00052876,120]
[325240675,1714620645570,-3792.7,0.00052876,120]
[325240676,1714620645579,-500.0,0.00052876,120]
[325240677,1714620645590,-1027.48059202,0.00053195,14]
[325240678,1714620645599,-151.53958,0.00053195,7]
[325240679,1714620645608,-500.0,0.00053423,120]
[325240680,1714620645623,-602.7467065,0.00053424,120]
[325240681,1714620645634,-500.0,0.00053424,120]
[325240682,1714620645646,-500.0,0.00053424,120]
[325240683,1714620645656,-500.0,0.00053424,120]
[325240684,1714620645665,-500.0,0.00053424,120]
[325240685,1714620645675,-500.0,0.00053424,120]
[325240686,1714620645685,-827.5,0.00053424,120]
[325240687,1714620645694,-500.0,0.00053424,120]
[325240688,1714620645705,-500.0,0.00053424,120]
[325240689,1714620645715,-500.0,0.00053424,120]
[325240690,1714620645725,-500.0,0.00053424,2]
[325240691,1714620645735,-648.63035658,0.00053424,120]
[325240692,1714620645745,-500.0,0.00053424,120]
[325240693,1714620645754,-500.0,0.00053424,120]
[325240694,1714620645763,-473.9,0.00053424,120]
[325240695,1714620645772,-500.0,0.00053424,120]
[325240696,1714620645783,-468.71,0.00053424,120]
[325240697,1714620645792,-500.0,0.00053424,120]
[325240698,1714620645801,-500.0,0.00053424,120]
[325240699,1714620645812,-500.0,0.00053424,120]
[325240700,1714620645822,-83333.25,0.00053424,120]
[325240701,1714620645831,-500.0,0.00053424,21]
[325240702,1714620645841,-1126.22,0.00053424,120]
[325240703,1714620645850,-500.0,0.00053424,120]
[325240704,1714620645859,-356.47711004,0.00053424,120]
[325240705,1714620645872,-500.0,0.00053424,120]
[325240706,1714620645881,-824.34,0.00053424,120]
[325240707,1714620645891,-500.0,0.00053424,120]
[325240708,1714620645900,-500.0,0.00053424,120]
[325240709,1714620645909,-500.0,0.00053424,120]
[325240710,1714620645919,-500.0,0.00053424,120]
[325240711,1714620645927,-2088.52,0.00053424,120]
[325240712,1714620645937,-155.37,0.00053424,120]
[325240713,1714620645946,-1562.12,0.00053424,120]
[325240714,1714620645956,-500.0,0.00053424,2]
[325240715,1714620645965,-500.0,0.00053424,30]
[325240716,1714620645975,-500.0,0.00053424,120]
[325240717,1714620645984,-500.0,0.00053424,120]
[325240718,1714620645994,-500.0,0.00053424,120]
[325240719,1714620646003,-500.0,0.00053424,120]
[325240720,1714620646013,-2788.69,0.00053424,120]
[325240721,1714620646023,-500.0,0.00053424,120]
[325240722,1714620646032,-500.0,0.00053424,120]
[325240723,1714620646042,-530.51,0.00053424,120]
[325240724,1714620646051,-702.6,0.00053424,120]
[325240725,1714620646060,-500.0,0.00053424,120]
[325240726,1714620646070,-1039.25,0.00053424,120]
[325240727,1714620646079,-517.15,0.00053424,120]
[325240728,1714620646088,-500.0,0.00053424,120]
[325240729,1714620646098,-500.0,0.00053424,120]
[325240730,1714620646107,-500.0,0.00053424,120]
[325240731,1714620646118,-552.24,0.00053424,120]
[325240732,1714620646127,-500.0,0.00053424,120]
[325240733,1714620646137,-500.0,0.00053424,120]
[325240734,1714620646146,-500.0,0.00053424,120]
[325240735,1714620646155,-500.0,0.00053424,120]
[325240736,1714620646164,-500.0,0.00053424,120]
[325240737,1714620646174,-607.06,0.00053424,120]
[325240738,1714620646183,-500.0,0.00053424,120]
[325240739,1714620646192,-500.0,0.00053424,120]
[325240740,1714620646202,-500.0,0.00053424,120]
[325240741,1714620646211,-3792.7,0.00053424,120]
[325240742,1714620646221,-500.0,0.00053424,120]
[325240743,1714620646230,-313.46288664,0.00053535,120]
[325240744,1714620646240,-61112.0,0.00053872,120]
[325240745,1714620646249,-500.0,0.00053971,120]
[325240746,1714620646258,-230.41818247,0.00053972,120]
[325240747,1714620646268,-500.0,0.00053972,120]
[325240748,1714620646278,-500.0,0.00053972,120]
[325240749,1714620646287,-500.0,0.00053972,120]
[325240750,1714620646296,-500.0,0.00053972,120]
[325240751,1714620646305,-827.5,0.00053972,120]
[325240752,1714620646315,-500.0,0.00053972,120]
[325240753,1714620646324,-500.0,0.00053972,120]
[325240754,1714620646334,-500.0,0.00053972,120]
[325240755,1714620646344,-500.0,0.00053972,2]
[325240756,1714620646353,-500.0,0.00053972,120]
[325240757,1714620646365,-500.0,0.00053972,120]
[325240758,1714620646374,-500.0,0.00053972,120]
[325240759,1714620646383,-500.0,0.00053972,120]
[325240760,1714620646392,-500.0,0.00053972,120]
[325240761,1714620646400,-320.63145904,0.00053972,120]
[325240762,1714620646410,-83333.25,0.00053972,120]
[325240763,1714620646419,-500.0,0.00053972,21]
[325240764,1714620646428,-1126.22,0.00053972,120]
[325240765,1714620646439,-500.0,0.00053972,120]
[325240766,1714620646448,-500.0,0.00053972,120]
[325240767,1714620646457,-824.34,0.00053972,120]
[325240768,1714620646467,-500.0,0.00053972,120]
[325240769,1714620646476,-500.0,0.00053972,120]
[325240771,1714620646485,-500.0,0.00053972,120]
[325240774,1714620646494,-500.0,0.00053972,120]
[325240777,1714620646503,-2088.52,0.00053972,120]
[325240780,1714620646512,-500.0,0.00053972,2]
[325240782,1714620646523,-1562.12,0.00053972,120]
[325240785,1714620646534,-500.0,0.00053972,30]
[325240788,1714620646544,-500.0,0.00053972,120]
[325240790,1714620646553,-189.34228102,0.00053972,120]
[325240791,1714620646563,-500.0,0.00053972,120]
[325240792,1714620646572,-500.0,0.00053972,120]
[325240793,1714620646581,-2788.69,0.00053972,120]
[325240794,1714620646591,-500.0,0.00053972,120]
[325240795,1714620646600,-500.0,0.00053972,120]
[325240796,1714620646609,-530.51,0.00053972,120]
[325240797,1714620646620,-702.6,0.00053972,120]
[325240798,1714620646630,-500.0,0.00053972,120]
[325240799,1714620646642,-1039.25,0.00053972,120]
[325240800,1714620646651,-517.15,0.00053972,120]
[325240801,1714620646660,-500.0,0.00053972,120]
[325240802,1714620646671,-500.0,0.00053972,120]
[325240803,1714620646681,-500.0,0.00053972,120]
[325240804,1714620646691,-552.24,0.00053972,120]
[325240805,1714620646700,-500.0,0.00053972,120]
[325240806,1714620646711,-500.0,0.00053972,120]
[325240807,1714620646724,-500.0,0.00053972,120]
[325240808,1714620646733,-545.91903097,0.00053972,120]
[325240809,1714620646743,-500.0,0.00053972,120]
[325240810,1714620646753,-500.0,0.00053972,120]
[325240811,1714620646763,-607.06,0.00053972,120]
[325240813,1714620646773,-170.36,0.00053972,120]
[325240815,1714620646782,-500.0,0.00053972,120]
[325240816,1714620646792,-3792.7,0.00053972,120]
[325240817,1714620646801,-500.0,0.00053972,120]
[325240818,1714620646811,-160.0,0.00054401,3]
[325240819,1714620646820,-500.0,0.00054519,120]
[325240820,1714620646829,-36311.28108614,0.0005452,61]
[325240821,1714620646839,-500.0,0.0005452,120]
[325240822,1714620646848,-495.04539957,0.0005452,120]
[325240823,1714620646857,-500.0,0.0005452,120]
[325240824,1714620646868,-500.0,0.0005452,120]
[325240825,1714620646877,-827.5,0.0005452,120]
[325240826,1714620646887,-392.64327243,0.0005452,120]
[325240827,1714620646896,-500.0,0.0005452,120]
[325240828,1714620646905,-500.0,0.0005452,120]
[325240829,1714620646914,-500.0,0.0005452,2]
[325240830,1714620646923,-500.0,0.0005452,120]
[325240831,1714620646931,-500.0,0.0005452,120]
[325240832,1714620646939,-500.0,0.0005452,120]
[325240833,1714620646948,-500.0,0.0005452,120]
[325240834,1714620646956,-500.0,0.0005452,120]
[325240835,1714620646965,-83333.25,0.0005452,120]
[325240836,1714620646974,-500.0,0.0005452,21]
[325240837,1714620646982,-1126.22,0.0005452,120]
[325240838,1714620646991,-500.0,0.0005452,120]
[325240839,1714620646999,-308.2684899,0.0005452,120]
[325240840,1714620647007,-824.34,0.0005452,120]
[325240841,1714620647016,-500.0,0.0005452,120]
[325240843,1714620647025,-500.0,0.0005452,120]
[325240844,1714620647034,-500.0,0.0005452,120]
[325240845,1714620647162,-500.0,0.0005452,120]
[325240846,1714620647172,-2088.52,0.0005452,120]
[325240847,1714620647181,-500.0,0.0005452,2]
[325240848,1714620647190,-1562.12,0.0005452,120]
[325240849,1714620647198,-500.0,0.0005452,30]
[325240850,1714620647207,-500.0,0.0005452,120]
[325240851,1714620647215,-500.0,0.0005452,120]
[325240852,1714620647222,-500.0,0.0005452,120]
[325240853,1714620647228,-2788.69,0.0005452,120]
[325240854,1714620647235,-500.0,0.0005452,120]
[325240855,1714620647241,-500.0,0.0005452,120]
[325240856,1714620647248,-530.51,0.0005452,120]
[325240857,1714620647255,-702.6,0.0005452,120]
[325240858,1714620647261,-500.0,0.0005452,120]
[325240859,1714620647269,-1039.25,0.0005452,120]
[325240860,1714620647276,-517.15,0.0005452,120]
[325240861,1714620647282,-500.0,0.0005452,120]
[325240862,1714620647289,-500.0,0.0005452,120]
[325240863,1714620647295,-223.96066961,0.0005452,120]
[325240864,1714620647302,-552.24,0.0005452,120]
[325240865,1714620647308,-500.0,0.0005452,120]
[325240866,1714620647314,-500.0,0.0005452,120]
[325240867,1714620647321,-500.0,0.0005452,120]
[325240868,1714620647328,-172.22,0.0005452,120]
[325240869,1714620647334,-607.06,0.0005452,120]
[325240870,1714620647340,-500.0,0.0005452,120]
[325240871,1714620647347,-500.0,0.0005452,120]
[325240872,1714620647354,-3792.7,0.0005452,120]
[325240873,1714620647361,-500.0,0.0005452,120]
[325240874,1714620647370,-500.0,0.00054794,120]
[325240875,1714620647377,-500.0,0.00055067,120]
[325240876,1714620647383,-500.0,0.00055068,120]
[325240877,1714620647390,-500.0,0.00055068,120]
[325240878,1714620647397,-500.0,0.00055068,120]
[325240879,1714620647404,-827.5,0.00055068,120]
[325240880,1714620647411,-500.0,0.00055068,120]
[325240881,1714620647419,-500.0,0.00055068,120]
[325240882,1714620647426,-500.0,0.00055068,2]
[325240883,1714620647434,-500.0,0.00055068,120]
[325240884,1714620647441,-500.0,0.00055068,120]
[325240885,1714620647449,-207.86203111,0.00055068,120]
[325240886,1714620647457,-500.0,0.00055068,120]
[325240887,1714620647464,-523.02974298,0.00055068,120]
[325240888,1714620647473,-83333.25,0.00055068,120]
[325240889,1714620647481,-500.0,0.00055068,21]
[325240890,1714620647489,-1126.22,0.00055068,120]
[325240891,1714620647496,-500.0,0.00055068,120]
[325240892,1714620647502,-824.34,0.00055068,120]
[325240893,1714620647508,-500.0,0.00055068,120]
[325240894,1714620647515,-500.0,0.00055068,120]
[325240895,1714620647522,-500.0,0.00055068,120]
[325240896,1714620647529,-500.0,0.00055068,120]
[325240897,1714620647535,-2088.52,0.00055068,120]
[325240898,1714620647542,-500.0,0.00055068,2]